bitfinex-derivatives/quotes_BTCF0:USTF0_20250905
["timestamp","ask_amount","ask_price","bid_price","bid_amount"]
[1757061207733,0.3608,112820.0,112810.0,1.55315839]
[1757061208539,0.3608,112820.0,112810.0,1.55307839]
[1757061209737,0.3608,112820.0,112810.0,0.73675839]
[1757061209938,0.3608,112820.0,112810.0,1.55303839]
[1757061210341,0.3608,112820.0,112810.0,1.3230915]
[1757061210650,0.3608,112820.0,112810.0,1.55303839]
[1757061212141,0.3608,112820.0,112810.0,1.62439366]
[1757061216047,0.4494237,112820.0,112810.0,1.62439366]
[1757061219537,0.3608,112820.0,112810.0,1.62439366]
[1757061220145,0.3608,112820.0,112810.0,1.70919366]
[1757061222049,0.36094,112830.0,112820.0,0.1228037]
[1757061222241,0.36084,112830.0,112820.0,0.75056633]
[1757061222439,0.36084,112830.0,112820.0,0.70476633]
[1757061223246,0.36084,112830.0,112820.0,0.70576633]
[1757061223942,0.36084,112830.0,112820.0,1.52156633]
[1757061224348,0.4494558,112830.0,112820.0,1.52156633]
[1757061226349,0.4494558,112830.0,112820.0,1.60636633]
[1757061226845,0.36084,112830.0,112820.0,1.60636633]
[1757061228453,0.4494558,112830.0,112820.0,1.60636633]
[1757061229259,0.4494558,112830.0,112820.0,0.79056633]
[1757061229453,0.4494558,112830.0,112820.0,1.60612633]
[1757061232251,0.4494558,112830.0,112820.0,0.79056633]
[1757061232553,0.4494558,112830.0,112820.0,1.60600633]
[1757061241461,0.4494558,112830.0,112820.0,1.634542]
[1757061248371,0.4494558,112830.0,112820.0,0.819102]
[1757061248574,0.4494558,112830.0,112820.0,1.634022]
[1757061254169,0.36084,112830.0,112820.0,1.89250456]
[1757061254763,0.36084,112830.0,112820.0,2.00406458]
[1757061255775,4e-05,112830.0,112820.0,1.91926458]
[1757061257167,0.0886558,112830.0,112820.0,0.58737946]
[1757061257368,0.4494558,112830.0,112820.0,1.44777936]
[1757061257569,0.4494558,112830.0,112820.0,1.70626192]
[1757061258070,0.4494558,112830.0,112820.0,0.89166192]
[1757061258263,0.4494558,112830.0,112820.0,1.70622192]
[1757061258976,0.0886558,112830.0,112820.0,1.70622192]
[1757061259567,4e-05,112830.0,112820.0,1.70622192]
[1757061260578,4e-05,112830.0,112820.0,0.89166192]
[1757061260875,4e-05,112830.0,112820.0,1.70614192]
[1757061261677,4e-05,112830.0,112820.0,1.79094192]
[1757061265476,4e-05,112830.0,112820.0,0.71797936]
[1757061265684,0.0886558,112830.0,112820.0,1.79074192]
[1757061268087,0.0886558,112830.0,112820.0,0.97646192]
[1757061268275,0.0886558,112830.0,112820.0,1.79074192]
[1757061268786,4e-05,112830.0,112820.0,1.79074192]
[1757061270285,4e-05,112830.0,112820.0,1.53225936]
[1757061270477,4e-05,112830.0,112820.0,1.79074192]
[1757061272886,0.0886558,112830.0,112820.0,1.79074192]
[1757061275889,0.0886558,112830.0,112820.0,0.97646192]
[1757061276085,0.0886558,112830.0,112820.0,1.79046192]
[1757061279990,0.0886558,112830.0,112820.0,0.97646192]
[1757061280291,0.0886558,112830.0,112820.0,1.79038192]
[1757061280584,0.0886558,112830.0,112820.0,0.97646192]
[1757061280889,0.0886558,112830.0,112820.0,1.79030192]
[1757061281191,0.98084836,112830.0,112820.0,1.70167832]
[1757061282289,0.98084836,112830.0,112820.0,1.79030192]
[1757061282485,0.98084836,112830.0,112820.0,0.88783832]
[1757061282686,0.98084836,112830.0,112820.0,1.70159832]
[1757061283792,0.7223658,112830.0,112820.0,1.70159832]
[1757061283990,0.98084836,112830.0,112820.0,1.70159832]
[1757061284182,0.98084836,112830.0,112820.0,0.88783832]
[1757061284386,0.98084836,112830.0,112820.0,0.55935576]
[1757061284891,0.98084836,112830.0,112820.0,1.37307576]
[1757061285393,0.98184836,112830.0,112820.0,1.28827576]
[1757061285791,0.98184836,112830.0,112820.0,0.47455576]
[1757061286089,0.98782836,112830.0,112820.0,1.24910002]
[1757061287595,0.98782836,112830.0,112820.0,0.43542002]
[1757061287790,0.98782836,112830.0,112820.0,1.24910002]
[1757061290193,0.98184836,112830.0,112820.0,1.24910002]
[1757061290492,0.98184836,112830.0,112820.0,1.50758258]
[1757061291195,0.98184836,112830.0,112820.0,1.24910002]
[1757061291386,0.98184836,112830.0,112820.0,1.01898002]
[1757061291582,2.05987092,112830.0,112820.0,0.11256002]
[1757061291888,2.05987092,112830.0,112820.0,0.09006662]
[1757061295400,1.5429058,112830.0,112820.0,0.09006662]
[1757061295583,2.05987092,112830.0,112820.0,0.09006662]
[1757061296083,2.05987092,112830.0,112820.0,0.001]
[1757061297295,0.7293458,112830.0,112820.0,0.001]
[1757061297498,1.5428658,112830.0,112820.0,0.02344]
[1757061297699,1.80130836,112830.0,112820.0,0.001]
[1757061297900,2.05979092,112830.0,112820.0,0.001]
[1757061299399,1.24631092,112830.0,112820.0,0.001]
[1757061299599,2.05983092,112830.0,112820.0,0.001]
[1757061300202,0.98782836,112830.0,112820.0,0.001]
[1757061300404,1.80130836,112830.0,112820.0,0.001]
[1757061300600,0.98782836,112830.0,112820.0,0.001]
[1757061300801,1.80126836,112830.0,112820.0,0.001]
[1757061301098,2.05975092,112830.0,112820.0,0.001]
[1757061301400,0.99631092,112830.0,112820.0,0.001]
[1757061301603,1.80975092,112830.0,112820.0,0.001]
[1757061302296,2.05975092,112830.0,112820.0,1e-07]
[1757061302500,0.1158616,112810.0,112800.0,0.01782162]
[1757061302697,1.90934416,112810.0,112800.0,0.01772162]
[1757061303604,1.88083911,112810.0,112800.0,0.01772162]
[1757061303794,1.88083911,112810.0,112800.0,0.01972162]
[1757061305202,1.88983138,112810.0,112800.0,0.01972162]
[1757061305406,1.88983138,112810.0,112800.0,0.02172162]
[1757061305699,1.65573387,112810.0,112800.0,0.04416162]
[1757061305902,0.84233387,112810.0,112800.0,0.05709162]
[1757061306102,1.65569387,112810.0,112800.0,0.05709162]
[1757061306403,1.65569387,112810.0,112800.0,0.05509162]
[1757061306595,1.65769387,112810.0,112800.0,0.05509162]
[1757061306996,1.65869387,112810.0,112800.0,0.05309162]
[1757061307803,0.84533387,112810.0,112800.0,0.05309162]
[1757061308012,1.65873387,112810.0,112800.0,0.05309162]
[1757061308191,0.84533387,112810.0,112800.0,0.88306913]
[1757061308396,0.8363416,112810.0,112800.0,0.88306913]
[1757061308797,0.8363416,112810.0,112800.0,0.64309162]
[1757061310307,0.8363416,112810.0,112800.0,0.37309162]
[1757061310508,0.8363416,112810.0,112800.0,0.30309162]
[1757061310802,0.8363416,112810.0,112800.0,0.87306913]
[1757061312100,0.8343416,112810.0,112800.0,0.87306913]
[1757061312600,0.8343416,112810.0,112800.0,0.96170873]
[1757061312807,0.8112316,112810.0,112800.0,0.96170873]
[1757061313005,0.8102316,112810.0,112800.0,0.96270873]
[1757061314005,0.8102316,112810.0,112800.0,1.77598873]
[1757061317712,0.8102316,112810.0,112800.0,1.54601122]
[1757061317912,0.8315016,112810.0,112800.0,1.68722913]
[1757061318505,0.8315016,112810.0,112800.0,1.77586893]
[1757061318713,0.8102316,112810.0,112800.0,1.77586893]
[1757061319212,0.8102316,112810.0,112800.0,1.75814731]
[1757061320614,0.8102316,112810.0,112800.0,0.94498731]
[1757061320814,0.8102316,112810.0,112800.0,1.75806731]
[1757061321021,0.8102316,112810.0,112800.0,0.94498731]
[1757061321315,0.8102316,112810.0,112800.0,1.75806731]
[1757061322608,0.8102316,112810.0,112800.0,1.76670599]
[1757061323918,0.8102316,112810.0,112800.0,1.53672848]
[1757061324109,0.8102316,112810.0,112800.0,1.76670599]
[1757061324916,0.8102316,112810.0,112800.0,1.53672848]
[1757061325216,0.8102316,112810.0,112800.0,1.76670599]
[1757061325917,0.7216,112810.0,112800.0,1.76670599]
[1757061328516,0.7216,112810.0,112800.0,1.51670599]
[1757061328719,0.7216,112810.0,112800.0,1.9966835]
[1757061329020,0.3817151,112820.0,112810.0,0.124552]
[1757061329220,0.3816151,112820.0,112810.0,0.71452951]
[1757061330808,0.3816151,112820.0,112810.0,0.96452951]
[1757061331012,0.3816151,112820.0,112810.0,0.96552951]
[1757061331222,0.3826151,112820.0,112810.0,0.96552951]
[1757061332324,0.3816151,112820.0,112810.0,0.96552951]
[1757061333029,0.3816151,112820.0,112810.0,1.05232951]
[1757061333324,0.3816151,112820.0,112810.0,1.05432951]
[1757061333726,0.3816151,112820.0,112810.0,0.824352]
[1757061333927,0.3816151,112820.0,112810.0,1.05432951]
[1757061334227,0.3816151,112820.0,112810.0,1.12562055]
[1757061336626,0.3608,112820.0,112810.0,1.93830055]
[1757061337232,0.3608,112820.0,112810.0,1.12562055]
[1757061337417,0.3608,112820.0,112810.0,1.93970055]
[1757061337622,0.4706947,112820.0,112810.0,0.12472]
[1757061337817,0.7206947,112820.0,112810.0,0.17472]
[1757061338027,0.7206947,112820.0,112810.0,0.12472]
[1757061338232,0.7248147,112820.0,112810.0,0.0888]
[1757061338433,0.95479221,112820.0,112810.0,0.0888]
[1757061338739,0.95479221,112820.0,112810.0,0.004]
[1757061339039,0.95579221,112820.0,112810.0,0.002]
[1757061339629,0.95479221,112820.0,112810.0,0.002]
[1757061339830,0.1099069,112810.0,112800.0,0.85331]
[1757061340131,0.47971823,112810.0,112800.0,0.85311]
[1757061340744,0.47971823,112810.0,112800.0,1.22311]
[1757061340929,0.47971823,112810.0,112800.0,0.85311]
[1757061341130,0.47971823,112810.0,112800.0,1.20311]
[1757061341332,0.47971823,112810.0,112800.0,0.85311]
[1757061341634,0.48071823,112810.0,112800.0,1.19311]
[1757061342138,0.75096006,112810.0,112800.0,0.03587]
[1757061342338,0.98093757,112810.0,112800.0,0.03587]
[1757061342738,0.98093757,112810.0,112790.0,0.14775026]
[1757061342739,0.1099158,112800.0,112790.0,0.14775026]
[1757061342931,0.4707158,112800.0,112790.0,1.34551026]
[1757061343131,0.95069331,112800.0,112790.0,0.23755026]
[1757061343634,0.7207158,112800.0,112790.0,0.23755026]
[1757061343839,0.7207158,112800.0,112790.0,0.14755026]
[1757061344041,0.7207158,112800.0,112790.0,0.14855026]
[1757061345328,0.7207158,112800.0,112790.0,0.14955026]
[1757061345639,0.95069331,112800.0,112790.0,0.14955026]
[1757061346340,0.95069331,112800.0,112790.0,0.14855026]
[1757061346544,0.95269331,112800.0,112790.0,0.14855026]
[1757061346734,1.022353,112800.0,112790.0,0.14855026]
[1757061347040,0.79237549,112800.0,112790.0,0.14755026]
[1757061347241,0.95269331,112800.0,112790.0,0.14755026]
[1757061347639,1.77037331,112800.0,112790.0,0.14755026]
[1757061347940,1.77037331,112800.0,112790.0,0.03614]
[1757061349340,0.1101235,112790.0,112780.0,0.85432]
[1757061349539,0.70688101,112790.0,112780.0,0.32]
[1757061349742,0.1101314,112780.0,112770.0,1.01133334]
[1757061349940,0.4709314,112780.0,112770.0,1.34123334]
[1757061351545,0.4709314,112780.0,112770.0,1.01123334]
[1757061352244,0.4709314,112780.0,112770.0,1.01223334]
[1757061352644,0.4709314,112780.0,112770.0,1.01323334]
[1757061353246,0.4709314,112780.0,112770.0,0.85553]
[1757061354650,0.4709314,112780.0,112770.0,0.03813]
[1757061357750,0.4709714,112780.0,112770.0,0.03813]
[1757061358349,0.70094891,112780.0,112770.0,0.03813]
[1757061358544,0.4709714,112780.0,112770.0,0.03713]
[1757061358845,0.4709714,112780.0,112770.0,0.001]
[1757061359047,0.4750914,112780.0,112760.0,0.84769]
[1757061359249,0.3608,112770.0,112760.0,1.15769]
[1757061359451,0.3608,112770.0,112760.0,1.15759]
[1757061359748,0.3608,112770.0,112760.0,0.32298]
[1757061359945,0.40273718,112770.0,112760.0,0.34613]
[1757061360444,0.41164381,112770.0,112760.0,0.34613]
[1757061362040,0.41264381,112770.0,112760.0,0.34613]
[1757061363652,0.40373718,112770.0,112760.0,0.34613]
[1757061365547,0.40373718,112770.0,112760.0,0.60494738]
[1757061365751,0.49240638,112770.0,112760.0,0.60494738]
[1757061368361,2.08284114,112770.0,112760.0,0.31]
[1757061368652,0.110147,112760.0,112750.0,0.03717]
[1757061368952,0.72976438,112760.0,112750.0,0.29588738]
[1757061369854,0.72976438,112760.0,112750.0,0.29688738]
[1757061370050,0.72976438,112760.0,112750.0,0.03807]
[1757061370257,0.72976438,112760.0,112750.0,0.29688738]
[1757061371243,0.72976438,112760.0,112750.0,0.03907]
[1757061372458,0.72976438,112760.0,112750.0,0.03807]
[1757061372459,0.73076438,112760.0,112750.0,0.03807]
[1757061372649,0.73076438,112760.0,112750.0,0.03707]
[1757061372850,0.73076438,112760.0,112750.0,0.04707]
[1757061373559,0.73080438,112760.0,112750.0,0.04707]
[1757061375661,0.73080438,112760.0,112750.0,1.17203]
[1757061378450,0.471987,112760.0,112750.0,1.17203]
[1757061378653,0.73080438,112760.0,112750.0,1.17203]
[1757061383263,0.73080438,112760.0,112750.0,1.43084738]
[1757061383454,0.450517,112760.0,112750.0,1.78764925]
[1757061384063,0.450517,112760.0,112750.0,1.78676925]
[1757061384663,0.472047,112760.0,112750.0,0.97268925]
[1757061384959,0.472047,112760.0,112750.0,1.78688915]
[1757061386460,0.472047,112760.0,112750.0,1.78672915]
[1757061388156,0.472047,112760.0,112750.0,1.52791177]
[1757061388361,0.472047,112760.0,112750.0,1.78672915]
[1757061388658,0.471047,112760.0,112750.0,1.78772915]
[1757061388867,0.471047,112760.0,112750.0,1.78872915]
[1757061389465,0.471047,112760.0,112750.0,1.52991177]
[1757061389668,0.471047,112760.0,112750.0,1.78872915]
[1757061390162,0.471047,112760.0,112750.0,0.71587177]
[1757061390462,0.471047,112760.0,112750.0,0.62718797]
[1757061390764,0.471047,112760.0,112750.0,1.78832935]
[1757061391166,0.471047,112760.0,112750.0,1.52951197]
[1757061391354,0.72986438,112760.0,112750.0,1.78832935]
[1757061391557,0.73086438,112760.0,112750.0,1.78732935]
[1757061391757,0.73086438,112760.0,112750.0,1.78632935]
[1757061392466,0.472047,112760.0,112750.0,1.78632935]
[1757061392667,0.472047,112760.0,112750.0,1.78724935]
[1757061392869,0.471047,112760.0,112750.0,1.52943197]
[1757061393175,0.471047,112760.0,112750.0,1.78824935]
[1757061394069,0.471047,112760.0,112750.0,0.72468935]
[1757061394259,0.72986438,112760.0,112750.0,0.63600535]
[1757061394459,0.72986438,112760.0,112750.0,1.53825005]
[1757061394668,0.73086438,112760.0,112750.0,1.53725005]
[1757061394867,0.73086438,112760.0,112750.0,1.53625005]
[1757061395171,0.72986438,112760.0,112750.0,0.63400535]
[1757061395469,0.72986438,112760.0,112750.0,1.44856535]
[1757061395871,0.72986438,112760.0,112750.0,0.63400535]
[1757061396075,0.73086438,112760.0,112750.0,1.44756535]
[1757061396262,0.73086438,112760.0,112750.0,1.53624995]
[1757061396463,0.73086438,112760.0,112750.0,0.72268995]
[1757061396662,0.73086438,112760.0,112750.0,1.53624995]
[1757061398172,0.472047,112760.0,112750.0,1.53624995]
[1757061398967,0.472047,112760.0,112750.0,0.72268995]
[1757061399172,0.472047,112760.0,112750.0,1.53620995]
[1757061399375,0.472047,112760.0,112750.0,1.53720995]
[1757061399673,0.471047,112760.0,112750.0,1.53820995]
[1757061400068,0.471047,112760.0,112750.0,0.72468995]
[1757061400263,0.471047,112760.0,112750.0,1.53820995]
[1757061400775,0.471047,112760.0,112750.0,1.27939257]
[1757061400973,0.471047,112760.0,112750.0,1.53820995]
[1757061402169,0.471047,112760.0,112750.0,0.72468995]
[1757061402474,0.471047,112760.0,112750.0,1.53820995]
[1757061402770,0.471047,112760.0,112750.0,0.72468995]
[1757061402978,0.471047,112760.0,112750.0,1.53820995]
[1757061403272,0.72986438,112760.0,112750.0,0.63600535]
[1757061403575,0.72986438,112760.0,112750.0,1.44952535]
[1757061403959,0.471047,112760.0,112750.0,1.53820965]
[1757061404574,0.471047,112760.0,112750.0,1.53720965]
[1757061404876,0.472047,112760.0,112750.0,1.53620965]
[1757061405375,0.472047,112760.0,112750.0,1.27739227]
[1757061405674,0.472047,112760.0,112750.0,1.27839227]
[1757061405878,0.471047,112760.0,112750.0,1.53820965]
[1757061406766,0.449517,112760.0,112750.0,1.53820965]
[1757061406963,0.449517,112760.0,112750.0,0.72468965]
[1757061407274,0.449517,112760.0,112750.0,1.53820965]
[1757061407777,0.449517,112760.0,112750.0,1.27939227]
[1757061408069,0.449517,112760.0,112750.0,1.53820965]
[1757061408271,0.36084,112760.0,112750.0,1.53820965]
[1757061408480,0.36084,112760.0,112750.0,1.78820965]
[1757061408674,0.36084,112760.0,112750.0,0.97468965]
[1757061408868,0.36084,112760.0,112750.0,1.78820965]
[1757061409069,0.38303,112760.0,112750.0,1.53820965]
[1757061409977,0.38303,112760.0,112750.0,0.72468965]
[1757061410178,0.38303,112760.0,112750.0,1.53820965]
[1757061410577,0.36084,112760.0,112750.0,1.53820965]
[1757061413080,0.36084,112760.0,112750.0,0.46587227]
[1757061413379,0.36084,112760.0,112750.0,1.53816965]
[1757061418177,0.36084,112760.0,112750.0,0.72468965]
[1757061418385,0.36084,112760.0,112750.0,1.53812965]
[1757061418884,0.36084,112760.0,112750.0,1.62292965]
[1757061419586,0.36084,112760.0,112750.0,1.36411227]
[1757061419785,0.36084,112760.0,112750.0,1.62292965]
[1757061422182,0.36084,112760.0,112750.0,1.36411227]
[1757061422380,0.36084,112760.0,112750.0,1.62292965]
[1757061426288,0.36084,112760.0,112750.0,1.36411227]
[1757061426586,0.36084,112760.0,112750.0,1.62292965]
[1757061427490,0.36084,112760.0,112750.0,1.59416489]
[1757061428489,0.36084,112760.0,112750.0,0.78072489]
[1757061428688,0.36084,112760.0,112750.0,1.59408489]
[1757061429089,0.36084,112760.0,112750.0,0.78072489]
[1757061429389,0.36084,112760.0,112750.0,1.59408489]
[1757061433583,0.36084,112760.0,112750.0,0.78072489]
[1757061433891,0.36084,112760.0,112750.0,1.59404489]
[1757061435296,0.36084,112760.0,112750.0,0.78072489]
[1757061435497,0.36084,112760.0,112750.0,1.59404489]
[1757061435687,0.38303,112760.0,112750.0,1.36399227]
[1757061435997,0.36084,112760.0,112750.0,1.59404489]
[1757061439398,0.36084,112760.0,112750.0,0.78072489]
[1757061439596,0.4495168,112760.0,112750.0,1.59400489]
[1757061439996,0.36084,112760.0,112750.0,1.59400489]
[1757061442397,0.36084,112760.0,112750.0,1.36395227]
[1757061442597,0.36084,112760.0,112750.0,1.59400489]
[1757061445599,0.382,112760.0,112750.0,0.78072489]
[1757061445785,0.382,112760.0,112750.0,1.59392489]
[1757061449801,0.36084,112760.0,112750.0,1.59392489]
[1757061450702,0.36084,112760.0,112750.0,1.36387227]
[1757061450903,0.36084,112760.0,112750.0,1.59392489]
[1757061453305,0.382,112760.0,112750.0,0.78072489]
[1757061453497,0.382,112760.0,112750.0,1.59380489]
[1757061454000,0.382,112760.0,112750.0,0.78072489]
[1757061454311,0.382,112760.0,112750.0,1.59380489]
[1757061454509,0.382,112760.0,112750.0,0.78072489]
[1757061454809,0.382,112760.0,112750.0,1.59380489]
[1757061456714,0.36084,112760.0,112750.0,1.59380489]
[1757061457417,0.36084,112760.0,112750.0,1.36375227]
[1757061457609,0.36084,112760.0,112750.0,1.59380489]
[1757061467118,0.36084,112760.0,112750.0,0.78072489]
[1757061467319,0.36084,112760.0,112750.0,1.59364489]
[1757061469717,0.3609,112770.0,112760.0,0.0886769]
[1757061469921,0.38121738,112780.0,112770.0,0.124149]
[1757061470112,0.38111738,112780.0,112770.0,1.267029]
[1757061470312,0.38111738,112780.0,112770.0,1.49708162]
[1757061471021,0.38111738,112780.0,112770.0,0.68420162]
[1757061471223,0.38111738,112780.0,112770.0,1.49708162]
[1757061471621,0.38311738,112780.0,112770.0,1.49708162]
[1757061472721,0.40639738,112780.0,112770.0,0.68420162]
[1757061472922,0.40639738,112780.0,112770.0,1.49804162]
[1757061473122,0.40439738,112780.0,112770.0,1.49904162]
[1757061474221,0.38111738,112780.0,112770.0,1.49904162]
[1757061474720,0.38111738,112780.0,112770.0,1.49900162]
[1757061476622,0.38111738,112780.0,112770.0,1.50788343]
[1757061478217,0.38111738,112780.0,112770.0,0.68620162]
[1757061478424,0.40439738,112780.0,112770.0,0.456149]
[1757061478715,0.40439738,112780.0,112770.0,1.268869]
[1757061478931,0.40439738,112780.0,112770.0,1.49892162]
[1757061479724,0.40439738,112780.0,112770.0,0.68620162]
[1757061479919,0.40439738,112780.0,112770.0,1.49892162]
[1757061480124,0.40439738,112780.0,112770.0,0.68620162]
[1757061480329,0.40439738,112780.0,112770.0,1.49892162]
[1757061483230,0.40439738,112780.0,112770.0,1.268869]
[1757061483429,0.40439738,112780.0,112770.0,1.49892162]
[1757061485628,0.49305778,112780.0,112770.0,1.49892162]
[1757061485831,0.49305778,112780.0,112770.0,0.456149]
[1757061486019,0.49305778,112780.0,112770.0,1.268789]
[1757061486420,0.38111738,112780.0,112770.0,1.49884162]
[1757061486626,0.38111738,112780.0,112770.0,1.58364162]
[1757061487628,0.38111738,112780.0,112770.0,1.87098186]
[1757061499436,0.38111738,112780.0,112770.0,1.87074186]
[1757061500137,0.38111738,112780.0,112770.0,1.05834186]
[1757061500345,0.38111738,112780.0,112770.0,1.87070186]
[1757061504736,0.38111738,112780.0,112770.0,1.86970186]
[1757061504942,0.38111738,112780.0,112770.0,1.87070186]
[1757061505137,0.38111738,112780.0,112770.0,1.87170186]
[1757061509243,0.38111738,112780.0,112770.0,1.86970186]
[1757061509446,0.38111738,112780.0,112770.0,1.87170186]
[1757061510042,0.38111738,112780.0,112770.0,1.86970186]
[1757061510243,0.38111738,112780.0,112770.0,1.87170186]
[1757061512145,0.38111738,112780.0,112770.0,1.86970186]
[1757061512342,0.38111738,112780.0,112770.0,1.87170186]
[1757061512545,0.36084,112780.0,112770.0,1.88981929]
[1757061512841,0.3609,112790.0,112780.0,0.1245403]
[1757061513049,0.3608,112790.0,112780.0,0.70323673]
[1757061514948,0.3608,112790.0,112780.0,0.70423673]
[1757061516653,0.3608,112790.0,112780.0,0.70623673]
[1757061516849,0.3608,112790.0,112780.0,0.79103673]
[1757061520557,0.36094,112800.0,112790.0,0.1245324]
[1757061520759,0.36084,112800.0,112790.0,1.55526883]
[1757061521858,0.36084,112800.0,112790.0,1.55626883]
[1757061522059,0.36084,112800.0,112790.0,1.5739703]
[1757061524459,0.36084,112800.0,112790.0,1.64637373]
[1757061529657,0.3609,112810.0,112800.0,0.0886452]
[1757061529860,0.3608,112810.0,112800.0,0.98017806]
[1757061531262,0.3608,112810.0,112800.0,1.79197806]
[1757061531464,0.3618,112810.0,112800.0,1.79197806]
[1757061534070,0.3618,112810.0,112800.0,0.98017806]
[1757061534261,0.3618,112810.0,112800.0,1.79193806]
[1757061534461,0.3618,112810.0,112800.0,1.79189806]
[1757061536066,0.3618,112810.0,112800.0,0.98017806]
[1757061536271,0.3618,112810.0,112800.0,1.79189806]
[1757061537067,0.3618,112810.0,112800.0,1.79185806]
[1757061537669,0.3618,112810.0,112800.0,0.98017806]
[1757061537968,0.3618,112810.0,112800.0,1.79185806]
[1757061538871,0.3618,112810.0,112800.0,0.98017806]
[1757061539073,0.3618,112810.0,112800.0,1.79185806]
[1757061539772,0.3618,112810.0,112800.0,0.98017806]
[1757061539965,0.3618,112810.0,112800.0,1.79181806]
[1757061541375,0.3618,112810.0,112800.0,0.98017806]
[1757061541576,0.3618,112810.0,112800.0,1.79177806]
[1757061543372,0.3618,112810.0,112800.0,0.98017806]
[1757061543675,0.3618,112810.0,112800.0,1.79173806]
[1757061545675,0.3618,112810.0,112800.0,1.79169806]
[1757061547777,0.3618,112810.0,112800.0,0.98017806]
[1757061547978,0.38303,112810.0,112800.0,1.79169806]
[1757061548776,0.3618,112810.0,112800.0,1.79169806]
[1757061549587,0.3618,112810.0,112800.0,1.50415429]
[1757061552173,0.3618,112810.0,112800.0,1.2743052]
[1757061552382,0.3618,112810.0,112800.0,1.50415429]
[1757061553585,0.0001,112820.0,112810.0,0.0886367]
[1757061553781,0.38217,112830.0,112820.0,0.1227688]
[1757061553981,0.38207,112830.0,112820.0,1.51295242]
[1757061554285,0.38207,112830.0,112820.0,0.37414]
[1757061554492,0.38207,112830.0,112820.0,1.50401789]
[1757061555188,0.38607,112830.0,112820.0,1.50401789]
[1757061556792,0.36484,112830.0,112820.0,1.50401789]
[1757061557592,0.00404,112830.0,112820.0,1.50401789]
[1757061557990,0.00404,112830.0,112820.0,0.47149625]
[1757061558197,0.02615,112830.0,112820.0,1.52462534]
[1757061558384,0.02615,112830.0,112820.0,1.29789625]
[1757061558589,0.00404,112830.0,112820.0,1.52774534]
[1757061559492,0.00404,112830.0,112820.0,1.29789625]
[1757061559694,0.00404,112830.0,112820.0,1.52774534]
[1757061561394,0.00404,112830.0,112820.0,0.70134534]
[1757061561594,0.00404,112830.0,112820.0,1.52818534]
[1757061564593,0.00404,112830.0,112820.0,1.52758534]
[1757061567092,0.02615,112830.0,112820.0,1.52734534]
[1757061568201,0.00404,112830.0,112820.0,1.52734534]
[1757061571000,0.00404,112830.0,112820.0,0.70134534]
[1757061571301,0.00404,112830.0,112820.0,1.52634534]
[1757061571995,0.00404,112830.0,112820.0,1.52642534]
[1757061574399,0.00404,112830.0,112820.0,1.52618534]
[1757061574899,0.00404,112830.0,112820.0,1.52738534]
[1757061575290,0.02615,112830.0,112820.0,1.52738534]
[1757061575492,0.02615,112830.0,112820.0,1.52730534]
[1757061575896,0.00404,112830.0,112820.0,1.52730534]
[1757061576099,0.00404,112830.0,112820.0,0.70134534]
[1757061576294,0.00404,112830.0,112820.0,1.52730534]
[1757061576494,0.00404,112830.0,112820.0,0.70134534]
[1757061576697,0.00404,112830.0,112820.0,1.52714534]
[1757061576998,0.00404,112830.0,112820.0,0.70134534]
[1757061577194,0.00404,112830.0,112820.0,1.52714534]
[1757061577399,0.00404,112830.0,112820.0,0.47149625]
[1757061577595,0.4755717,112830.0,112820.0,0.37414]
[1757061577801,0.4755717,112830.0,112820.0,1.19974]
[1757061578002,0.4755717,112830.0,112820.0,1.2883696]
[1757061578700,0.38695,112830.0,112820.0,1.2883696]
[1757061579004,0.38695,112830.0,112820.0,0.4716042]
[1757061579198,0.38695,112830.0,112820.0,1.2972042]
[1757061585199,0.38695,112830.0,112820.0,1.2883696]
[1757061585406,0.38695,112830.0,112820.0,1.2870096]
[1757061588009,0.38695,112830.0,112820.0,0.4627696]
[1757061588202,0.38695,112830.0,112820.0,1.2867296]
[1757061592196,0.38695,112830.0,112820.0,0.4627696]
[1757061592402,0.38695,112830.0,112820.0,1.29483008]
[1757061592603,0.38695,112830.0,112820.0,0.47143008]
[1757061592904,0.38695,112830.0,112820.0,1.29439008]
[1757061593092,0.38695,112830.0,112820.0,1.29435008]
[1757061593607,0.38695,112830.0,112820.0,1.2855696]
[1757061593904,0.38695,112830.0,112820.0,0.4627696]
[1757061594096,0.38695,112830.0,112820.0,1.2853696]
[1757061594301,0.38695,112830.0,112820.0,0.4627696]
[1757061594496,0.38695,112830.0,112820.0,1.2853696]
[1757061594707,0.38695,112830.0,112820.0,0.4627696]
[1757061594908,0.38695,112830.0,112820.0,1.2853296]
[1757061595096,0.38695,112830.0,112820.0,0.4627696]
[1757061595299,0.38695,112830.0,112820.0,1.2852496]
[1757061595506,0.38695,112830.0,112820.0,1.2850896]
[1757061595911,0.4755718,112830.0,112820.0,0.4627696]
[1757061596210,0.4755718,112830.0,112820.0,1.2850896]
[1757061596711,0.4715718,112830.0,112820.0,1.2850896]
[1757061596900,0.4725718,112830.0,112820.0,1.2850896]
[1757061603113,0.38395,112830.0,112820.0,1.2850896]
[1757061603508,0.38395,112830.0,112820.0,1.51493869]
[1757061604010,0.38395,112830.0,112820.0,0.69261869]
[1757061604215,0.4725718,112830.0,112820.0,1.51353869]
[1757061606815,0.38395,112830.0,112820.0,1.51353869]
[1757061609113,0.36184,112830.0,112820.0,1.2836896]
[1757061609313,0.36184,112830.0,112820.0,1.51353869]
[1757061610318,0.36184,112830.0,112820.0,1.2836896]
[1757061610522,0.36084,112830.0,112820.0,1.51453869]
[1757061611417,0.36084,112830.0,112820.0,1.54319421]
[1757061611621,0.36084,112830.0,112820.0,1.54419421]
[1757061618627,0.38255,112830.0,112820.0,0.4647696]
[1757061618826,0.38255,112830.0,112820.0,1.54295421]
[1757061619725,0.38255,112830.0,112820.0,1.2844496]
[1757061619929,0.38255,112830.0,112820.0,1.2841696]
[1757061620127,0.38255,112830.0,112820.0,0.72327421]
[1757061620328,0.38255,112830.0,112820.0,1.54279421]
[1757061621626,0.38255,112830.0,112820.0,0.72327421]
[1757061621829,0.64105461,112830.0,112820.0,1.45416461]
[1757061622130,0.64105461,112830.0,112820.0,0.63464461]
[1757061622330,0.64105461,112830.0,112820.0,0.37614]
[1757061622525,0.65010475,112830.0,112820.0,1.19574]
[1757061622929,0.65010475,112830.0,112820.0,0.37614]
[1757061623331,0.90422475,112830.0,112820.0,0.36304]
[1757061623531,0.90422475,112830.0,112820.0,1.18252]
[1757061623730,0.90422475,112830.0,112820.0,1.18152]
[1757061624034,0.90522475,112830.0,112820.0,1.18152]
[1757061624332,0.90522475,112830.0,112820.0,1.18052]
[1757061627138,0.90522475,112830.0,112820.0,1.17988]